[Event "*** Titled Tuesday Blitz"]
[Site "Chess.com"]
[Date "2020.03.03"]
[Round "4"]
[White "ajian"]
[Black "IMRosen"]
[Result "1-0"]
[WhiteElo "2286"]
[BlackElo "2494"]
[TimeControl "180+1"]
[EndTime "9:38:35 PST"]
[Termination "ajian won by checkmate"]

1. d4 {[%clk 0:03:00.9]} 1... d5 {[%clk 0:02:59.5]} 2. c4 {[%clk 0:03:00.3]}
2... e6 {[%clk 0:02:59.7]} 3. Nc3 {[%clk 0:02:59.9]} 3... Nf6 {[%clk 0:02:59.4]}
4. cxd5 {[%clk 0:02:58.8]} 4... exd5 {[%clk 0:03:00.3]} 5. Bg5 {[%clk
0:02:58.8]} 5... c6 {[%clk 0:03:00.4]} 6. Qc2 {[%clk 0:02:58.3]} 6... Bd6 {[%clk
0:02:58.5]} 7. e3 {[%clk 0:02:57.6]} 7... O-O {[%clk 0:02:54.7]} 8. Bd3 {[%clk
0:02:56.8]} 8... h6 {[%clk 0:02:54.7]} 9. Bh4 {[%clk 0:02:56.3]} 9... Re8 {[%clk
0:02:50.7]} 10. Nf3 {[%clk 0:02:54.1]} 10... a5 {[%clk 0:02:46.2]} 11. O-O
{[%clk 0:02:44.3]} 11... Na6 {[%clk 0:02:45.2]} 12. a3 {[%clk 0:02:41.4]} 12...
Bg4 {[%clk 0:02:44.8]} 13. Nd2 {[%clk 0:02:26.7]} 13... Bd7 {[%clk 0:02:34.8]}
14. Nf3 {[%clk 0:02:09.2]} 14... Nc7 {[%clk 0:02:32.1]} 15. Rab1 {[%clk
0:01:58.4]} 15... Bg4 {[%clk 0:02:31.9]} 16. Nd2 {[%clk 0:01:54.3]} 16... Bd7
{[%clk 0:02:24.4]} 17. Nf3 {[%clk 0:01:53]} 17... Ne6 {[%clk 0:02:25]} 18. b4
{[%clk 0:01:46.4]} 18... axb4 {[%clk 0:02:12.9]} 19. axb4 {[%clk 0:01:47.3]}
19... b5 {[%clk 0:02:10.7]} 20. Ne5 {[%clk 0:01:33.9]} 20... Ng5 {[%clk
0:01:59.4]} 21. f4 {[%clk 0:01:24]} 21... Ngh7 {[%clk 0:01:41]} 22. Bxh7+ {[%clk
0:01:17.2]} 22... Kh8 {[%clk 0:01:39]} 23. Nxf7# {[%clk 0:01:15.1]} 1-0

[Event "*** Titled Tuesday Blitz"]
[Site "Chess.com"]
[Date "2020.03.03"]
[Round "4"]
[White "SubrotaBiswas"]
[Black "ZEN-22"]
[Result "0-1"]
[WhiteElo "2478"]
[BlackElo "2246"]
[TimeControl "180+1"]
[EndTime "9:38:35 PST"]
[Termination "ZEN-22 won by resignation"]

1. e4 {[%clk 0:03:00]} 1... d5 {[%clk 0:02:59.6]} 2. exd5 {[%clk 0:02:59.8]}
2... c6 {[%clk 0:03:00.5]} 3. Nf3 {[%clk 0:03:00.5]} 3... cxd5 {[%clk
0:03:00.5]} 4. Bb5+ {[%clk 0:03:00.5]} 4... Nc6 {[%clk 0:03:01.4]} 5. Ne5 {[%clk
0:02:59.6]} 5... Qb6 {[%clk 0:02:58.4]} 6. Qe2 {[%clk 0:02:56.8]} 6... a6 {[%clk
0:02:55.4]} 7. Ba4 {[%clk 0:02:54.7]} 7... Nf6 {[%clk 0:02:55]} 8. Nc3 {[%clk
0:02:54.6]} 8... e6 {[%clk 0:02:54.7]} 9. O-O {[%clk 0:02:54.6]} 9... Bd6 {[%clk
0:02:53.6]} 10. d4 {[%clk 0:02:54.5]} 10... O-O {[%clk 0:02:52.3]} 11. Bxc6
{[%clk 0:02:53.7]} 11... bxc6 {[%clk 0:02:52.4]} 12. Bg5 {[%clk 0:02:54.5]}
12... Nd7 {[%clk 0:02:40.4]} 13. Na4 {[%clk 0:02:48.2]} 13... Qxd4 {[%clk
0:02:39.7]} 14. Nxd7 {[%clk 0:02:34.5]} 14... Bxd7 {[%clk 0:02:37.6]} 15. b3
{[%clk 0:02:31.1]} 15... Qe5 {[%clk 0:02:34.3]} 16. Qxe5 {[%clk 0:02:29.3]}
16... Bxe5 {[%clk 0:02:34.1]} 17. Nb6 {[%clk 0:02:30.2]} 17... Bxa1 {[%clk
0:02:32.4]} 18. Nxd7 {[%clk 0:02:30]} 18... Bc3 {[%clk 0:02:28.5]} 19. Nxf8
{[%clk 0:02:24.7]} 19... Kxf8 {[%clk 0:02:29.4]} 20. Be3 {[%clk 0:02:24.1]}
20... a5 {[%clk 0:02:28.7]} 21. Bc5+ {[%clk 0:02:23.9]} 21... Ke8 {[%clk
0:02:28.1]} 22. a4 {[%clk 0:02:22.1]} 22... Bb4 {[%clk 0:02:27.1]} 23. Bd4
{[%clk 0:02:19.2]} 23... f6 {[%clk 0:02:25.4]} 24. f4 {[%clk 0:02:19.1]} 24...
c5 {[%clk 0:02:25]} 25. Bb2 {[%clk 0:02:18.4]} 25... Kd7 {[%clk 0:02:25.1]} 26.
Kf2 {[%clk 0:02:18.5]} 26... d4 {[%clk 0:02:21.2]} 27. Rd1 {[%clk 0:02:16.9]}
27... Kc6 {[%clk 0:02:20.5]} 28. Ke2 {[%clk 0:02:16.9]} 28... Re8 {[%clk
0:02:19.3]} 29. Kd3 {[%clk 0:02:16.8]} 29... e5 {[%clk 0:02:19.1]} 30. fxe5
{[%clk 0:02:15.2]} 30... Rxe5 {[%clk 0:02:18.6]} 31. Kc4 {[%clk 0:02:00.2]}
31... Re2 {[%clk 0:02:16.2]} 32. Rc1 {[%clk 0:01:57.8]} 32... Rxg2 {[%clk
0:02:13]} 33. h3 {[%clk 0:01:56.6]} 33... Rg3 {[%clk 0:02:12.2]} 34. h4 {[%clk
0:01:52.6]} 34... Ba3 {[%clk 0:02:10.3]} 35. Rg1 {[%clk 0:01:38.1]} 35... Rxg1
{[%clk 0:02:07.5]} 0-1

[Event "*** Titled Tuesday Blitz"]
[Site "Chess.com"]
[Date "2020.03.03"]
[Round "4"]
[White "ckgchess"]
[Black "Vaathi_Coming"]
[Result "0-1"]
[WhiteElo "2692"]
[BlackElo "2855"]
[TimeControl "180+1"]
[EndTime "9:38:53 PST"]
[Termination "Vaathi_Coming won by resignation"]

1. e4 {[%clk 0:03:00.9]} 1... c6 {[%clk 0:02:59.5]} 2. d4 {[%clk 0:02:57.7]}
2... d5 {[%clk 0:02:59.7]} 3. e5 {[%clk 0:02:58.3]} 3... c5 {[%clk 0:02:59.2]}
4. dxc5 {[%clk 0:02:58.2]} 4... e6 {[%clk 0:02:58.6]} 5. a3 {[%clk 0:02:51.1]}
5... Bxc5 {[%clk 0:02:56.2]} 6. Qg4 {[%clk 0:02:51.1]} 6... Ne7 {[%clk
0:02:54.7]} 7. Bd3 {[%clk 0:02:46.4]} 7... Ng6 {[%clk 0:02:52.9]} 8. Nf3 {[%clk
0:02:45.2]} 8... Nc6 {[%clk 0:02:51.3]} 9. O-O {[%clk 0:02:41]} 9... Qc7 {[%clk
0:02:34.5]} 10. Re1 {[%clk 0:02:32.7]} 10... Bd7 {[%clk 0:02:32]} 11. Nc3 {[%clk
0:02:30.5]} 11... a6 {[%clk 0:02:31.3]} 12. Qg3 {[%clk 0:02:28.3]} 12... O-O-O
{[%clk 0:02:30.5]} 13. h4 {[%clk 0:02:19.5]} 13... f6 {[%clk 0:02:25.5]} 14. b4
{[%clk 0:02:12.4]} 14... Ba7 {[%clk 0:02:20.5]} 15. Bxg6 {[%clk 0:01:54.5]}
15... hxg6 {[%clk 0:02:21.4]} 16. b5 {[%clk 0:01:54]} 16... Nd4 {[%clk
0:02:13.3]} 17. Bb2 {[%clk 0:01:06.6]} 17... Nxf3+ {[%clk 0:01:59.4]} 18. Qxf3
{[%clk 0:01:04.5]} 18... fxe5 {[%clk 0:01:59.4]} 19. bxa6 {[%clk 0:01:04.4]}
19... Rdf8 {[%clk 0:01:54.8]} 20. axb7+ {[%clk 0:01:04.1]} 20... Qxb7 {[%clk
0:01:50.8]} 0-1

[Event "*** Titled Tuesday Blitz"]
[Site "Chess.com"]
[Date "2020.03.03"]
[Round "4"]
[White "Gogolev_Artemy"]
[Black "szefru"]
[Result "1-0"]
[WhiteElo "2493"]
[BlackElo "2157"]
[TimeControl "180+1"]
[EndTime "9:39:18 PST"]
[Termination "Gogolev_Artemy won by resignation"]

1. d4 {[%clk 0:03:00.9]} 1... d5 {[%clk 0:02:59.3]} 2. c4 {[%clk 0:02:59]} 2...
c6 {[%clk 0:03:00.2]} 3. Nf3 {[%clk 0:02:55.1]} 3... Nf6 {[%clk 0:02:59.8]} 4.
e3 {[%clk 0:02:54.5]} 4... e6 {[%clk 0:03:00.2]} 5. Nc3 {[%clk 0:02:54.7]} 5...
Nbd7 {[%clk 0:03:00.6]} 6. Bd3 {[%clk 0:02:54.5]} 6... dxc4 {[%clk 0:03:00.1]}
7. Bxc4 {[%clk 0:02:54.4]} 7... b5 {[%clk 0:03:01]} 8. Be2 {[%clk 0:02:52.4]}
8... a6 {[%clk 0:03:01.3]} 9. O-O {[%clk 0:02:52]} 9... Bb7 {[%clk 0:03:01.4]}
10. e4 {[%clk 0:02:51.1]} 10... b4 {[%clk 0:03:01.2]} 11. e5 {[%clk 0:02:50]}
11... bxc3 {[%clk 0:02:59.8]} 12. exf6 {[%clk 0:02:50.2]} 12... Nxf6 {[%clk
0:02:59]} 13. bxc3 {[%clk 0:02:49.6]} 13... c5 {[%clk 0:02:59.1]} 14. Ne5 {[%clk
0:02:44.8]} 14... cxd4 {[%clk 0:02:57.5]} 15. Qa4+ {[%clk 0:02:42.8]} 15... Nd7
{[%clk 0:02:55.4]} 16. Rd1 {[%clk 0:02:39.2]} 16... Bc5 {[%clk 0:02:53]} 17.
cxd4 {[%clk 0:02:32.7]} 17... Bd6 {[%clk 0:02:50.3]} 18. Rb1 {[%clk 0:02:09.6]}
18... Bd5 {[%clk 0:02:43.9]} 19. Bh5 {[%clk 0:01:45.6]} 19... g6 {[%clk
0:02:41]} 20. Bg5 {[%clk 0:01:44.4]} 20... Be7 {[%clk 0:02:29.6]} 21. Bxe7
{[%clk 0:01:44]} 21... Qxe7 {[%clk 0:02:28.9]} 22. Bf3 {[%clk 0:01:41.2]} 22...
Bxf3 {[%clk 0:02:25.5]} 23. gxf3 {[%clk 0:01:38.5]} 23... f6 {[%clk 0:02:24.6]}
24. Rb7 {[%clk 0:01:18.8]} 24... Rd8 {[%clk 0:02:17.5]} 25. Nc6 {[%clk
0:01:16.3]} 25... Qd6 {[%clk 0:02:09.1]} 26. Nxd8 {[%clk 0:01:15.5]} 26... Kxd8
{[%clk 0:02:10]} 27. d5 {[%clk 0:01:06.5]} 27... Nc5 {[%clk 0:02:05.1]} 28. dxe6
{[%clk 0:01:02.9]} 28... Nd3 {[%clk 0:01:53.8]} 29. Rd7+ {[%clk 0:00:59.8]} 1-0

[Event "*** Titled Tuesday Blitz"]
[Site "Chess.com"]
[Date "2020.03.03"]
[Round "4"]
[White "piscatorox"]
[Black "FMPowerwolf"]
[Result "1-0"]
[WhiteElo "2273"]
[BlackElo "2485"]
[TimeControl "180+1"]
[EndTime "9:39:28 PST"]
[Termination "piscatorox won by resignation"]

1. e4 {[%clk 0:03:00.9]} 1... d6 {[%clk 0:02:58]} 2. b3 {[%clk 0:02:59.1]} 2...
Nf6 {[%clk 0:02:55.8]} 3. Nc3 {[%clk 0:02:55.5]} 3... c5 {[%clk 0:02:55.6]} 4.
Bb2 {[%clk 0:02:54.5]} 4... g6 {[%clk 0:02:55.2]} 5. Nd5 {[%clk 0:02:45.2]} 5...
e5 {[%clk 0:02:43.4]} 6. Nxf6+ {[%clk 0:02:31.1]} 6... Qxf6 {[%clk 0:02:42.5]}
7. g3 {[%clk 0:02:25.7]} 7... Nc6 {[%clk 0:02:41.4]} 8. Bg2 {[%clk 0:02:19.1]}
8... Bg7 {[%clk 0:02:41.3]} 9. Ne2 {[%clk 0:02:18.2]} 9... Qe7 {[%clk 0:02:41]}
10. O-O {[%clk 0:02:12.2]} 10... O-O {[%clk 0:02:40.6]} 11. Nc3 {[%clk
0:02:04.9]} 11... Be6 {[%clk 0:02:39.4]} 12. f4 {[%clk 0:01:53]} 12... Qd7
{[%clk 0:02:36.1]} 13. f5 {[%clk 0:01:36.4]} 13... gxf5 {[%clk 0:02:31.1]} 14.
exf5 {[%clk 0:01:36.4]} 14... Bxf5 {[%clk 0:02:31.2]} 15. Nd5 {[%clk 0:01:36.4]}
15... Bg6 {[%clk 0:02:19.6]} 16. Nf6+ {[%clk 0:01:29]} 16... Bxf6 {[%clk
0:02:19.4]} 17. Rxf6 {[%clk 0:01:28.8]} 17... Kg7 {[%clk 0:02:17.8]} 18. Qf3
{[%clk 0:01:15.6]} 18... Nd4 {[%clk 0:01:54.7]} 19. Bxd4 {[%clk 0:01:12]} 19...
cxd4 {[%clk 0:01:55]} 20. Rf1 {[%clk 0:01:00.5]} 20... Rac8 {[%clk 0:01:53.8]}
21. h4 {[%clk 0:00:56.6]} 21... h5 {[%clk 0:01:49.5]} 22. d3 {[%clk 0:00:46.7]}
22... Rxc2 {[%clk 0:01:46.7]} 23. Rxg6+ {[%clk 0:00:45.9]} 23... Kxg6 {[%clk
0:01:43]} 24. Qf6+ {[%clk 0:00:45.8]} 24... Kh7 {[%clk 0:01:42.8]} 25. Be4+
{[%clk 0:00:44.9]} 25... Kg8 {[%clk 0:01:42.8]} 26. Qg5+ {[%clk 0:00:37]} 1-0

[Event "*** Titled Tuesday Blitz"]
[Site "Chess.com"]
[Date "2020.03.03"]
[Round "4"]
[White "rpragchess"]
[Black "adricalderon8"]
[Result "1/2-1/2"]
[WhiteElo "2778"]
[BlackElo "2413"]
[TimeControl "180+1"]
[EndTime "9:39:29 PST"]
[Termination "Game drawn by repetition"]

1. e4 {[%clk 0:03:00.9]} 1... c5 {[%clk 0:02:59.2]} 2. Nf3 {[%clk 0:03:00.9]}
2... Nc6 {[%clk 0:02:57.5]} 3. Bb5 {[%clk 0:03:00.4]} 3... g6 {[%clk 0:02:56.9]}
4. Bxc6 {[%clk 0:03:00.2]} 4... dxc6 {[%clk 0:02:53.2]} 5. d3 {[%clk 0:03:00.2]}
5... Bg7 {[%clk 0:02:53.6]} 6. h3 {[%clk 0:02:59.7]} 6... Nf6 {[%clk 0:02:53.8]}
7. Nc3 {[%clk 0:02:59]} 7... Nd7 {[%clk 0:02:52.8]} 8. Be3 {[%clk 0:02:58.9]}
8... e5 {[%clk 0:02:52.7]} 9. Bc1 {[%clk 0:02:58.7]} 9... Nf8 {[%clk 0:02:49]}
10. Be3 {[%clk 0:02:53.1]} 10... b6 {[%clk 0:02:48.5]} 11. a3 {[%clk 0:02:51.2]}
11... Ne6 {[%clk 0:02:47.9]} 12. Qc1 {[%clk 0:02:50.1]} 12... h6 {[%clk
0:02:46.9]} 13. b4 {[%clk 0:02:45.2]} 13... f5 {[%clk 0:02:44.3]} 14. bxc5
{[%clk 0:02:36.5]} 14... f4 {[%clk 0:02:38.4]} 15. Bd2 {[%clk 0:02:35.8]} 15...
Nxc5 {[%clk 0:02:38.6]} 16. Ne2 {[%clk 0:02:04.8]} 16... O-O {[%clk 0:02:34.1]}
17. Bc3 {[%clk 0:02:04]} 17... Qe7 {[%clk 0:02:31.4]} 18. a4 {[%clk 0:02:02.2]}
18... g5 {[%clk 0:02:28.1]} 19. Qb2 {[%clk 0:01:57.3]} 19... Re8 {[%clk
0:02:23.8]} 20. Nd2 {[%clk 0:01:48.1]} 20... Ba6 {[%clk 0:02:23.1]} 21. O-O
{[%clk 0:01:40.7]} 21... Kh7 {[%clk 0:02:17.5]} 22. Rfe1 {[%clk 0:01:38.9]}
22... Qe6 {[%clk 0:02:13.8]} 23. d4 {[%clk 0:01:33.2]} 23... Nd7 {[%clk
0:02:07.1]} 24. Nf3 {[%clk 0:01:26.2]} 24... g4 {[%clk 0:02:00.3]} 25. hxg4
{[%clk 0:01:23.8]} 25... Qxg4 {[%clk 0:02:00.2]} 26. dxe5 {[%clk 0:00:57.2]}
26... Rg8 {[%clk 0:01:58.5]} 27. Nh2 {[%clk 0:00:50.6]} 27... Qg5 {[%clk
0:01:54.6]} 28. Nf3 {[%clk 0:00:50.1]} 28... Qg4 {[%clk 0:01:50.1]} 29. Nh2
{[%clk 0:00:42.8]} 29... Qg5 {[%clk 0:01:50.4]} 30. Nf3 {[%clk 0:00:38.9]} 30...
Qg4 {[%clk 0:01:50.9]} 1/2-1/2

[Event "*** Titled Tuesday Blitz"]
[Site "Chess.com"]
[Date "2020.03.03"]
[Round "4"]
[White "Alopekos"]
[Black "mrkvoz"]
[Result "0-1"]
[WhiteElo "2469"]
[BlackElo "2720"]
[TimeControl "180+1"]
[EndTime "9:39:29 PST"]
[Termination "mrkvoz won by resignation"]

1. d4 {[%clk 0:03:00.9]} 1... d6 {[%clk 0:03:00.3]} 2. c4 {[%clk 0:03:00.5]}
2... e5 {[%clk 0:03:00]} 3. d5 {[%clk 0:02:54]} 3... Nf6 {[%clk 0:02:59.5]} 4.
Nc3 {[%clk 0:02:53.1]} 4... Nbd7 {[%clk 0:03:00.1]} 5. e4 {[%clk 0:02:52.6]}
5... Nc5 {[%clk 0:03:00.7]} 6. Bg5 {[%clk 0:02:51.8]} 6... Be7 {[%clk
0:02:59.9]} 7. f3 {[%clk 0:02:51]} 7... Nxd5 {[%clk 0:02:54.7]} 8. Bxe7 {[%clk
0:02:41.5]} 8... Nxe7 {[%clk 0:02:54.2]} 9. Nge2 {[%clk 0:02:38.1]} 9... a5
{[%clk 0:02:53.7]} 10. Ng3 {[%clk 0:02:35.9]} 10... O-O {[%clk 0:02:52.1]} 11.
a3 {[%clk 0:02:34.1]} 11... a4 {[%clk 0:02:51.3]} 12. Be2 {[%clk 0:02:30.7]}
12... f5 {[%clk 0:02:50.8]} 13. O-O {[%clk 0:02:29]} 13... f4 {[%clk 0:02:50.7]}
14. Nf5 {[%clk 0:02:21.1]} 14... Nxf5 {[%clk 0:02:50]} 15. exf5 {[%clk
0:02:20.6]} 15... Bxf5 {[%clk 0:02:50.8]} 16. Ne4 {[%clk 0:02:13.3]} 16... Bxe4
{[%clk 0:02:42.7]} 17. fxe4 {[%clk 0:02:11.3]} 17... c6 {[%clk 0:02:42.8]} 18.
Bd3 {[%clk 0:01:56.2]} 18... Qb6 {[%clk 0:02:37.3]} 19. Rf2 {[%clk 0:01:52.1]}
19... Rf6 {[%clk 0:02:27.3]} 20. Rc1 {[%clk 0:01:43.1]} 20... Nb3 {[%clk
0:02:23]} 21. Rc3 {[%clk 0:01:37.9]} 21... Qd4 {[%clk 0:02:13.4]} 22. c5 {[%clk
0:01:21.8]} 22... Nxc5 {[%clk 0:02:02.4]} 23. Bc4+ {[%clk 0:01:05.9]} 23... Kh8
{[%clk 0:01:57.3]} 24. Qh5 {[%clk 0:00:54.3]} 24... Nxe4 {[%clk 0:01:52.2]} 25.
Rf3 {[%clk 0:00:29.2]} 25... Nxf2 {[%clk 0:01:49]} 26. Rxf2 {[%clk 0:00:30.1]}
26... Qxc4 {[%clk 0:01:46.9]} 0-1

[Event "*** Titled Tuesday Blitz"]
[Site "Chess.com"]
[Date "2020.03.03"]
[Round "4"]
[White "FearNoEvil12"]
[Black "Eloist"]
[Result "0-1"]
[WhiteElo "1954"]
[BlackElo "2242"]
[TimeControl "180+1"]
[EndTime "9:39:30 PST"]
[Termination "Eloist won by resignation"]

1. e4 {[%clk 0:03:00.9]} 1... e6 {[%clk 0:02:58.1]} 2. d4 {[%clk 0:02:59.9]}
2... d5 {[%clk 0:02:59]} 3. Nc3 {[%clk 0:02:58.8]} 3... Nf6 {[%clk 0:02:59]} 4.
Qd3 {[%clk 0:02:59]} 4... c5 {[%clk 0:02:55.7]} 5. dxc5 {[%clk 0:02:56.5]} 5...
Bxc5 {[%clk 0:02:51.5]} 6. Bg5 {[%clk 0:02:55.9]} 6... Nc6 {[%clk 0:02:44.2]} 7.
O-O-O {[%clk 0:02:47.5]} 7... d4 {[%clk 0:02:36.4]} 8. Nb5 {[%clk 0:02:36.7]}
8... a6 {[%clk 0:02:28.8]} 9. Qc4 {[%clk 0:02:07.3]} 9... Qb6 {[%clk 0:01:59.2]}
10. Na3 {[%clk 0:01:54]} 10... Nxe4 {[%clk 0:01:56.9]} 11. Bh4 {[%clk 0:01:45]}
11... Nc3 {[%clk 0:01:54.6]} 12. bxc3 {[%clk 0:01:25.8]} 12... Bxa3+ {[%clk
0:01:53.9]} 13. Kd2 {[%clk 0:01:25.7]} 13... dxc3+ {[%clk 0:01:51.5]} 14. Ke1
{[%clk 0:01:21.7]} 14... O-O {[%clk 0:01:47.6]} 15. Nf3 {[%clk 0:01:18.8]} 15...
e5 {[%clk 0:01:44.6]} 16. Bd3 {[%clk 0:01:17.1]} 16... Be6 {[%clk 0:01:43.8]}
17. Qa4 {[%clk 0:00:57.9]} 17... Qb4 {[%clk 0:01:41.5]} 18. Qxb4 {[%clk
0:00:54.9]} 18... Bxb4 {[%clk 0:01:42]} 19. Ke2 {[%clk 0:00:42.7]} 19... h6
{[%clk 0:01:37.9]} 20. Rhe1 {[%clk 0:00:40.6]} 20... f5 {[%clk 0:01:37.1]} 0-1

[Event "*** Titled Tuesday Blitz"]
[Site "Chess.com"]
[Date "2020.03.03"]
[Round "4"]
[White "MFBerna"]
[Black "Astaneh"]
[Result "0-1"]
[WhiteElo "2341"]
[BlackElo "2562"]
[TimeControl "180+1"]
[EndTime "9:40:05 PST"]
[Termination "Astaneh won by resignation"]

1. e4 {[%clk 0:03:00]} 1... e5 {[%clk 0:02:58.2]} 2. Nf3 {[%clk 0:03:00]} 2...
Nc6 {[%clk 0:02:58.4]} 3. Bb5 {[%clk 0:02:59.8]} 3... Nf6 {[%clk 0:02:58.9]} 4.
O-O {[%clk 0:02:57.1]} 4... Nxe4 {[%clk 0:02:59.3]} 5. d4 {[%clk 0:02:56.8]}
5... Nd6 {[%clk 0:02:59.7]} 6. Bxc6 {[%clk 0:02:57.2]} 6... dxc6 {[%clk
0:03:00.6]} 7. dxe5 {[%clk 0:02:58.1]} 7... Nf5 {[%clk 0:03:01.3]} 8. Qxd8+
{[%clk 0:02:58.4]} 8... Kxd8 {[%clk 0:03:02.2]} 9. Nc3 {[%clk 0:02:56.5]} 9...
Ke8 {[%clk 0:03:02.5]} 10. h3 {[%clk 0:02:56.3]} 10... h5 {[%clk 0:03:03]} 11.
Ne2 {[%clk 0:02:50.2]} 11... Be7 {[%clk 0:02:59.6]} 12. b3 {[%clk 0:02:46.3]}
12... c5 {[%clk 0:02:54.8]} 13. c4 {[%clk 0:02:45]} 13... b6 {[%clk 0:02:55]}
14. Nf4 {[%clk 0:02:24.2]} 14... Bb7 {[%clk 0:02:51]} 15. Nd5 {[%clk 0:02:23.9]}
15... Bxd5 {[%clk 0:02:51.6]} 16. cxd5 {[%clk 0:02:24.8]} 16... Rd8 {[%clk
0:02:51.2]} 17. Rd1 {[%clk 0:02:24.3]} 17... Nd4 {[%clk 0:02:51.8]} 18. Be3
{[%clk 0:01:54]} 18... Ne2+ {[%clk 0:02:49.1]} 19. Kf1 {[%clk 0:01:50.8]} 19...
Nc3 {[%clk 0:02:50]} 20. Rd2 {[%clk 0:01:36]} 20... Nxd5 {[%clk 0:02:49.9]} 21.
Re1 {[%clk 0:01:06.9]} 21... Nxe3+ {[%clk 0:02:49.2]} 22. Rxe3 {[%clk
0:00:53.1]} 22... Rxd2 {[%clk 0:02:50.1]} 23. Nxd2 {[%clk 0:00:54]} 23... Bg5
{[%clk 0:02:50.6]} 24. Rd3 {[%clk 0:00:54.4]} 24... Bxd2 {[%clk 0:02:50.9]} 25.
Rxd2 {[%clk 0:00:55.3]} 25... Ke7 {[%clk 0:02:51.6]} 26. f4 {[%clk 0:00:47.1]}
26... h4 {[%clk 0:02:50.9]} 27. Ke2 {[%clk 0:00:46.6]} 27... a5 {[%clk
0:02:48.6]} 28. a4 {[%clk 0:00:40]} 28... f5 {[%clk 0:02:46.7]} 29. exf6+ {[%clk
0:00:30.6]} 29... gxf6 {[%clk 0:02:46.9]} 30. Kf3 {[%clk 0:00:23]} 30... Rg8
{[%clk 0:02:47.1]} 31. Re2+ {[%clk 0:00:19]} 31... Kd6 {[%clk 0:02:44.6]} 32.
Rd2+ {[%clk 0:00:17]} 32... Ke6 {[%clk 0:02:45.2]} 33. Re2+ {[%clk 0:00:14.3]}
33... Kf5 {[%clk 0:02:45.7]} 34. Re7 {[%clk 0:00:12.9]} 34... Rg3+ {[%clk
0:02:46.1]} 35. Kf2 {[%clk 0:00:13.8]} 35... Rxb3 {[%clk 0:02:46.5]} 36. Rxc7
{[%clk 0:00:14.3]} 36... Kxf4 {[%clk 0:02:45.7]} 37. Rc6 {[%clk 0:00:13.5]}
37... Rb2+ {[%clk 0:02:46.2]} 38. Kg1 {[%clk 0:00:13.6]} 38... f5 {[%clk
0:02:47.1]} 39. Kh2 {[%clk 0:00:12.3]} 39... Rb4 {[%clk 0:02:45.9]} 40. Rh6
{[%clk 0:00:11.7]} 40... Kg5 {[%clk 0:02:44.6]} 41. Rc6 {[%clk 0:00:11]} 41...
c4 {[%clk 0:02:43.9]} 42. Kg1 {[%clk 0:00:11.7]} 42... Kf4 {[%clk 0:02:43.9]}
43. Kf2 {[%clk 0:00:12]} 43... Ke4 {[%clk 0:02:41.9]} 44. Re6+ {[%clk 0:00:10]}
44... Kd3 {[%clk 0:02:42]} 45. Kf3 {[%clk 0:00:09.7]} 45... c3 {[%clk
0:02:41.9]} 46. Rd6+ {[%clk 0:00:09.1]} 46... Kc2 {[%clk 0:02:42.1]} 47. Rd5
{[%clk 0:00:07.1]} 47... Kb2 {[%clk 0:02:41.2]} 0-1

[Event "*** Titled Tuesday Blitz"]
[Site "Chess.com"]
[Date "2020.03.03"]
[Round "4"]
[White "farzadbfd"]
[Black "Sibelephant"]
[Result "0-1"]
[WhiteElo "2626"]
[BlackElo "3048"]
[TimeControl "180+1"]
[EndTime "9:40:08 PST"]
[Termination "Sibelephant won by resignation"]

1. e4 {[%clk 0:03:00.9]} 1... e5 {[%clk 0:02:54.7]} 2. Nf3 {[%clk 0:02:59.5]}
2... Nc6 {[%clk 0:02:54.8]} 3. Bb5 {[%clk 0:02:59.3]} 3... g6 {[%clk 0:02:54.8]}
4. c3 {[%clk 0:02:51.5]} 4... a6 {[%clk 0:02:54.2]} 5. Ba4 {[%clk 0:02:50.3]}
5... Bg7 {[%clk 0:02:54.2]} 6. O-O {[%clk 0:02:49.2]} 6... d6 {[%clk 0:02:53.9]}
7. d4 {[%clk 0:02:48.5]} 7... Bd7 {[%clk 0:02:53.7]} 8. Bg5 {[%clk 0:02:37.6]}
8... f6 {[%clk 0:02:52.7]} 9. Be3 {[%clk 0:02:36.3]} 9... Nh6 {[%clk 0:02:52.8]}
10. h3 {[%clk 0:02:35.1]} 10... Nf7 {[%clk 0:02:52.5]} 11. Nbd2 {[%clk
0:02:30.7]} 11... O-O {[%clk 0:02:52.2]} 12. Re1 {[%clk 0:01:59.4]} 12... Kh8
{[%clk 0:02:51]} 13. Nf1 {[%clk 0:01:54.5]} 13... Qe8 {[%clk 0:02:46.3]} 14. Bc2
{[%clk 0:01:50.2]} 14... Ncd8 {[%clk 0:02:43.6]} 15. Ng3 {[%clk 0:01:49.9]}
15... Qe7 {[%clk 0:02:28.1]} 16. Qd2 {[%clk 0:01:49.1]} 16... Ne6 {[%clk
0:02:17.8]} 17. Rad1 {[%clk 0:01:44]} 17... Nfg5 {[%clk 0:02:15.1]} 18. Nh4
{[%clk 0:01:44.5]} 18... Rae8 {[%clk 0:01:56.2]} 19. b4 {[%clk 0:01:21.1]} 19...
Nf4 {[%clk 0:01:54.4]} 20. Bxf4 {[%clk 0:01:02.5]} 20... exf4 {[%clk 0:01:54.4]}
21. Qxf4 {[%clk 0:01:03.4]} 21... Bh6 {[%clk 0:01:54.7]} 22. Kh1 {[%clk
0:00:58.1]} 22... Qg7 {[%clk 0:01:54.1]} 23. Qe3 {[%clk 0:00:39.1]} 23... Nxe4
{[%clk 0:01:46.8]} 24. Qf3 {[%clk 0:00:38.2]} 24... f5 {[%clk 0:01:36.2]} 25.
Kg1 {[%clk 0:00:22.5]} 25... Bg5 {[%clk 0:01:30.1]} 26. Nxe4 {[%clk 0:00:20.2]}
26... fxe4 {[%clk 0:01:29.7]} 27. Qg3 {[%clk 0:00:20.8]} 27... Bf4 {[%clk
0:01:30]} 0-1

[Event "*** Titled Tuesday Blitz"]
[Site "Chess.com"]
[Date "2020.03.03"]
[Round "4"]
[White "champ2005"]
[Black "Vegan4future"]
[Result "1-0"]
[WhiteElo "2987"]
[BlackElo "2548"]
[TimeControl "180+1"]
[EndTime "9:40:14 PST"]
[Termination "champ2005 won by resignation"]

1. f4 {[%clk 0:03:00.9]} 1... Nc6 {[%clk 0:02:58]} 2. Nf3 {[%clk 0:03:00.8]}
2... e5 {[%clk 0:02:57.5]} 3. fxe5 {[%clk 0:02:57.9]} 3... g5 {[%clk 0:02:57.7]}
4. h3 {[%clk 0:02:33.4]} 4... d6 {[%clk 0:02:55.4]} 5. d4 {[%clk 0:02:33.6]}
5... dxe5 {[%clk 0:02:51.1]} 6. Bxg5 {[%clk 0:02:33.1]} 6... f6 {[%clk
0:02:49.2]} 7. Be3 {[%clk 0:02:32.2]} 7... e4 {[%clk 0:02:34.3]} 8. c3 {[%clk
0:02:11.9]} 8... exf3 {[%clk 0:02:29.7]} 9. exf3 {[%clk 0:02:12.8]} 9... Bd6
{[%clk 0:02:25.8]} 10. Bd3 {[%clk 0:02:08.9]} 10... Bg3+ {[%clk 0:02:25]} 11.
Bf2 {[%clk 0:02:09]} 11... Qd6 {[%clk 0:02:24.5]} 12. Nd2 {[%clk 0:02:06.2]}
12... Bd7 {[%clk 0:02:22.1]} 13. Ne4 {[%clk 0:02:05.6]} 13... Bxf2+ {[%clk
0:02:22.3]} 14. Kxf2 {[%clk 0:02:06.5]} 14... Qd5 {[%clk 0:02:16.3]} 15. Nc5
{[%clk 0:02:00.4]} 15... O-O-O {[%clk 0:02:13.1]} 16. Be4 {[%clk 0:02:00.5]}
16... Qg5 {[%clk 0:02:04.2]} 17. Qb3 {[%clk 0:01:57.3]} 17... b6 {[%clk
0:01:44.9]} 18. Nxd7 {[%clk 0:01:44.7]} 18... Kxd7 {[%clk 0:01:45.7]} 19. h4
{[%clk 0:01:32.6]} 19... Qd2+ {[%clk 0:01:40.7]} 20. Kf1 {[%clk 0:01:32.6]}
20... Nge7 {[%clk 0:01:41.6]} 21. Rd1 {[%clk 0:01:32.7]} 21... Qf4 {[%clk
0:01:33.7]} 22. Qa4 {[%clk 0:01:29.3]} 22... Kd6 {[%clk 0:01:07]} 23. d5 {[%clk
0:01:09.2]} 23... Na5 {[%clk 0:01:02.4]} 24. Qb4+ {[%clk 0:01:06.2]} 24... Kd7
{[%clk 0:00:58.3]} 25. d6 {[%clk 0:01:06.2]} 25... Nec6 {[%clk 0:00:48.1]} 26.
Bxc6+ {[%clk 0:01:04.8]} 26... Nxc6 {[%clk 0:00:47.5]} 27. Qxf4 {[%clk 0:01:04]}
1-0